bitfinex/quotes_ETHUSD_20250430
["timestamp","ask_amount","ask_price","bid_price","bid_amount"]
[1746015851484,0.19999999,1799.8,1799.6,5.55679039]
[1746015851643,0.19999999,1799.7,1799.6,5.55679039]
[1746015851846,0.19999999,1799.7,1799.6,7.24756832]
[1746015852348,0.19999999,1799.7,1799.6,12.44456832]
[1746015853171,0.19999999,1799.8,1799.7,5.55648163]
[1746015854251,0.19999999,1799.7,1799.6,10.75360857]
[1746015854461,0.19999999,1799.7,1799.6,5.197]
[1746015854697,0.19999999,1799.7,1799.4,0.7732]
[1746015854993,0.19999999,1799.5,1799.4,5.55740802]
[1746015855195,0.19999999,1799.5,1799.4,5.197]
[1746015856694,0.19999999,1799.5,1799.4,10.75440802]
[1746015856874,0.19999999,1799.5,1799.4,5.197]
[1746015857195,0.19999999,1799.5,1799.4,10.75440802]
[1746015858069,0.19999999,1799.5,1799.4,5.197]
[1746015858269,0.19999999,1799.4,1799.2,23.8909071]
[1746015858467,0.19999999,1799.4,1799.2,18.333]
[1746015858670,0.19999999,1798.3,1797.9,0.4132522]
[1746015858870,5.76080741,1798.3,1798.2,5.198]
[1746015859601,5.76080741,1798.3,1797.9,0.4132522]
[1746015859602,0.19999999,1798.0,1797.9,0.4132522]
[1746015859901,5.76173525,1798.0,1797.9,0.4132522]
[1746015860894,0.19999999,1798.0,1797.9,0.4132522]
[1746015861096,5.76173525,1798.0,1797.9,0.4132522]
[1746015861295,0.19999999,1798.0,1797.9,5.8302522]
[1746015862618,0.19999999,1798.0,1797.9,11.3922968]
[1746015862924,3.7899,1798.3,1797.9,12.59908085]
[1746015863123,3.7899,1798.3,1798.0,5.417]
[1746015863124,9.42037167,1798.3,1798.0,5.417]
[1746015863423,0.7899,1798.3,1798.0,10.97860674]
[1746015863601,0.7899,1798.3,1798.0,5.417]
[1746015863799,6.42023932,1798.3,1798.0,5.417]
[1746015864326,8.59073525,1798.0,1797.9,1e-08]
[1746015864526,3.829,1797.2,1797.1,0.15091403]
[1746015864841,5.56344713,1797.5,1797.1,0.15091403]
[1746015864842,0.8306,1797.5,1797.2,5.56420611]
[1746015865008,0.8306,1797.9,1797.4,5.56328832]
[1746015865204,0.8306,1797.9,1797.5,5.419]
[1746015865515,5.56067003,1798.4,1797.9,5.56192999]
[1746015865716,0.8306,1798.5,1797.8,0.7869]
[1746015865890,5.5597516,1798.7,1797.8,0.7869]
[1746015865891,0.8306,1798.8,1798.1,5.56142594]
[1746015866091,0.8306,1799.1,1798.7,5.5595708]
[1746015866403,0.06949538,1799.0,1798.8,5.42]
[1746015866606,0.64586155,1799.0,1798.8,5.42]
[1746015866808,5.55959966,1798.7,1797.9,0.7671]
[1746015867021,5.56065265,1798.4,1798.0,5.42]
[1746015867237,5.56065265,1798.4,1797.6,23.91096066]
[1746015867238,5.56122533,1798.2,1797.8,5.56219409]
[1746015867439,6.38097146,1798.3,1797.9,5.42]
[1746015867752,3.82,1798.3,1797.9,10.98184692]
[1746015867952,3.82,1798.3,1798.0,5.56153259]
[1746015868733,0.82,1798.3,1797.9,10.98184986]
[1746015868929,0.82,1798.3,1797.9,7.07440772]
[1746015869144,5.56018027,1798.6,1798.2,5.5610807]
[1746015869346,9.42292695,1798.9,1798.0,5.39700004]
[1746015869347,0.7944,1798.9,1798.0,5.39700004]
[1746015869650,6.35254289,1799.2,1798.8,5.55926173]
[1746015869850,0.06949222,1799.1,1798.9,5.421]
[1746015870058,0.63525429,1799.1,1798.9,5.421]
[1746015870358,0.86389028,1799.2,1798.9,10.97993063]
[1746015870519,0.86389028,1799.2,1798.9,5.421]
[1746015870718,0.57571407,1799.4,1799.0,5.55847408]
[1746015870914,0.86808757,1799.5,1799.1,5.55814009]
[1746015871461,0.06948757,1799.5,1799.1,5.55814009]
[1746015871624,1.11835416,1799.5,1799.1,5.55814009]
[1746015871820,0.798,1799.7,1799.0,0.8292]
[1746015871821,0.86747557,1799.7,1799.0,0.8292]
[1746015872025,0.798,1799.7,1799.3,5.55751876]
[1746015872327,6.32257081,1800.0,1799.4,10.97830104]
[1746015872524,3.0,1799.3,1798.4,5.56035219]
[1746015872728,5.55907834,1798.9,1798.7,5.653]
[1746015872935,5.55889547,1799.0,1798.7,5.653]
[1746015873335,9.32487844,1799.2,1798.7,5.653]
[1746015873543,5.55906513,1798.9,1798.7,5.653]
[1746015873862,5.55884264,1799.0,1798.7,5.653]
[1746015874072,6.32510352,1799.2,1798.7,11.21235249]
[1746015874267,6.32507721,1799.2,1798.8,5.55917966]
[1746015874562,5.55833867,1799.1,1798.7,11.21230053]
[1746015874782,5.55833867,1799.1,1798.7,16.77171773]
[1746015875055,6.32500958,1799.2,1798.8,5.55925241]
[1746015875258,0.7668,1799.2,1798.9,5.55889322]
[1746015875623,6.32484526,1799.2,1798.8,5.55907176]
[1746015875859,6.32484526,1799.2,1798.8,5.55907046]
[1746015876162,5.55785683,1799.3,1798.9,5.55888378]
[1746015876348,0.87748334,1799.5,1798.8,1.67715462]
[1746015876659,6.36431117,1799.8,1799.4,5.55721016]
[1746015876869,6.36431117,1799.8,1799.6,5.55678721]
[1746015876870,0.808,1799.8,1799.6,5.55678721]
[1746015877078,5.55633184,1799.8,1799.5,5.653]
[1746015877647,5.55600666,1799.9,1799.5,5.653]
[1746015877851,6.36342341,1800.1,1799.6,5.55656045]
[1746015878052,5.55557458,1800.0,1799.6,5.55668726]
[1746015878364,5.55557458,1800.0,1799.5,13.15257866]
[1746015878365,5.55590858,1799.9,1799.5,12.03149197]
[1746015878766,5.5557316,1800.0,1799.6,5.55673053]
[1746015878965,5.55587042,1799.9,1799.5,12.03157751]
[1746015879181,6.81708397,1800.0,1799.5,12.03166811]
[1746015879489,5.55598607,1799.9,1799.5,17.58834769]
[1746015879789,6.81711092,1800.0,1799.6,5.55675605]
[1746015879976,6.74765964,1800.0,1799.6,5.55675605]
[1746015880151,0.808,1800.1,1799.7,5.55631912]
[1746015880351,5.62425572,1800.3,1799.8,5.55594686]
[1746015880668,5.55480645,1800.3,1799.9,5.55573004]
[1746015880872,6.38368595,1800.4,1800.0,11.20736329]
[1746015881084,0.8292,1800.4,1800.1,5.55508282]
[1746015881278,11.10845714,1800.5,1800.1,5.55508282]
[1746015881495,1.11084571,1800.4,1800.1,5.55508282]
[1746015881793,6.36319681,1800.6,1800.2,5.55490831]
[1746015881965,5.55357519,1800.7,1800.3,5.55449334]
[1746015882168,6.43190276,1800.8,1800.3,5.55449334]
[1746015882406,7.56094464,1800.8,1800.3,5.55433561]
[1746015882707,5.5534019,1800.7,1800.3,6.37073561]
[1746015883485,5.62282493,1800.7,1800.3,6.37073561]
[1746015884309,5.5534019,1800.7,1800.3,6.37073561]
[1746015884510,1.19847225,1800.8,1800.3,0.8164]
[1746015884739,5.55218428,1801.1,1800.3,0.83037352]
[1746015884918,5.55493834,1800.2,1800.1,0.01396272]
[1746015885075,5.55493834,1800.2,1799.7,5.65]
[1746015885076,5.55574221,1800.0,1799.7,5.65]
[1746015885277,5.5560282,1799.9,1799.7,5.65]
[1746015885616,11.1115945,1800.0,1799.7,5.65]
[1746015885784,0.77,1800.5,1799.4,0.7529]
[1746015885994,0.77,1800.5,1800.0,5.55539025]
[1746015886193,0.77,1800.5,1800.1,5.65]
[1746015886194,5.55454455,1800.4,1800.1,5.65]
[1746015886521,5.55466235,1800.3,1800.1,5.65]
[1746015886725,5.55493834,1800.2,1800.1,5.65]
[1746015888913,5.55493834,1800.2,1800.0,18.343]
[1746015889234,5.55493834,1800.2,1800.1,5.65]
[1746015889385,5.55455096,1800.4,1800.1,5.65]
[1746015889592,0.8394402,1800.5,1800.1,5.65]
[1746015889807,1.40931778,1800.5,1800.1,5.65]
[1746015890003,0.63931778,1800.5,1800.1,5.65]
[1746015890500,0.06942948,1800.5,1800.1,5.65]
[1746015890691,0.06942949,1800.6,1800.0,18.343]
[1746015890892,5.5541239,1800.5,1800.2,5.649]
[1746015891391,5.62333627,1800.6,1800.2,5.649]
[1746015891827,3.8213,1800.8,1800.2,11.95523807]
[1746015892132,5.62205061,1801.0,1800.4,5.55410099]
[1746015892580,0.06942982,1801.0,1800.5,5.55398175]
[1746015893077,5.55253907,1801.0,1800.4,5.55413292]
[1746015893232,0.8213,1801.1,1800.7,5.5533623]
[1746015893436,0.8213,1801.1,1800.8,5.648]
[1746015893437,0.63733439,1801.1,1800.8,5.648]
[1746015893675,5.62108979,1801.3,1800.8,11.20105572]
[1746015893969,3.0,1801.3,1800.9,18.338]
[1746015894155,4.54793085,1801.3,1800.9,18.338]
[1746015894474,10.09951045,1801.3,1800.9,18.338]
[1746015896282,5.55112598,1801.5,1801.0,0.7515]
[1746015896490,5.5512461,1801.4,1801.0,6.30385508]
[1746015896660,5.55126097,1801.4,1801.0,6.30385508]
[1746015896868,11.10277814,1801.4,1801.0,0.7515]
[1746015897062,5.55165848,1801.3,1801.0,0.7515]
[1746015897261,5.55108094,1801.5,1801.0,6.30389964]
[1746015897467,5.55108094,1801.5,1801.1,5.55206637]
[1746015897680,5.55078486,1801.6,1801.2,5.55171929]
[1746015897880,5.55078486,1801.6,1801.3,5.648]
[1746015898080,5.55078486,1801.6,1800.9,18.338]
[1746015898081,5.55123792,1801.4,1800.9,18.338]
[1746015898281,5.55239695,1801.1,1801.0,5.648]
[1746015899187,5.55239695,1801.1,1800.9,18.338]
[1746015899390,5.55239695,1801.1,1801.0,5.647]
[1746015899582,5.55177176,1801.3,1801.0,5.647]
[1746015899756,11.1035811,1801.3,1801.0,5.647]
[1746015899953,5.55177176,1801.3,1801.0,5.647]
[1746015900493,6.32325493,1801.5,1801.0,8.60077555]
[1746015900791,5.55201814,1801.2,1801.0,5.647]
[1746015902307,5.55247084,1801.0,1800.9,18.338]
[1746015902474,5.55247084,1801.0,1800.9,23.984]
[1746015902870,6.66293418,1801.0,1800.9,23.984]
[1746015904975,5.55452011,1800.4,1800.3,0.7557]
[1746015905186,5.55452011,1800.4,1800.3,6.3197]
[1746015905435,5.55462978,1800.3,1800.2,18.331]
[1746015905586,5.55462978,1800.3,1800.2,23.895]
[1746015906101,5.55452011,1800.4,1800.2,23.895]
[1746015906295,5.55462978,1800.3,1800.2,23.895]
[1746015907517,5.55447476,1800.4,1800.2,23.895]
[1746015908316,5.55462978,1800.3,1800.2,23.895]
[1746015908810,5.62406612,1800.3,1800.2,23.895]
[1746015909124,6.06334518,1800.3,1800.2,23.895]
[1746015909293,6.36857981,1800.3,1800.2,23.895]
[1746015910619,6.06334518,1800.3,1800.2,23.895]
[1746015911327,1.01765271,1800.3,1800.2,23.895]
[1746015911499,6.57228249,1800.3,1800.2,23.895]
[1746015911692,1.01765271,1800.3,1800.2,23.895]
[1746015911888,6.06334518,1800.3,1800.2,23.895]
[1746015913797,6.3686444,1800.3,1800.2,23.895]
[1746015914402,0.81401462,1800.3,1800.2,23.895]
[1746015914603,6.06334518,1800.3,1800.2,23.895]
[1746015916995,5.55462978,1800.3,1800.2,23.895]
[1746015917417,0.30529763,1800.3,1800.2,23.895]
[1746015917619,5.85992741,1800.3,1800.2,23.895]
[1746015917829,5.55462978,1800.3,1800.2,23.895]
[1746015918893,6.06343092,1800.3,1800.2,23.895]
[1746015919330,6.57221885,1800.3,1800.2,23.895]
[1746015920240,6.87747897,1800.3,1800.2,23.895]
[1746015920626,1.32284919,1800.3,1800.2,23.895]
[1746015921141,6.87747897,1800.3,1800.2,23.895]
[1746015921430,6.36867783,1800.3,1800.2,23.895]
[1746015921636,0.81404805,1800.3,1800.2,23.895]
[1746015921839,6.36867783,1800.3,1800.2,23.895]
[1746015922205,0.81404805,1800.3,1800.2,23.895]
[1746015922543,0.50878793,1800.3,1800.2,23.895]
[1746015923059,5.55445366,1800.4,1800.2,23.895]
[1746015923417,11.10905479,1800.4,1800.2,23.895]
[1746015923646,5.55445366,1800.4,1800.2,23.895]
[1746015924455,5.55445366,1800.4,1800.2,5.564]
[1746015924661,11.10904062,1800.4,1800.2,5.564]
[1746015924827,5.55462978,1800.3,1800.2,5.564]
[1746015925156,5.55462978,1800.3,1800.2,6.3348]
[1746015925650,5.55462978,1800.3,1800.2,5.564]
[1746015925847,3.8059,1800.7,1800.2,6.1204]
[1746015926033,5.55320925,1800.8,1800.4,5.55416174]
[1746015926345,5.55424486,1800.5,1800.3,0.7615]
[1746015926658,5.55454775,1800.4,1800.1,0.7913]
[1746015927147,5.55462978,1800.3,1800.1,0.7913]
[1746015927445,5.55448756,1800.4,1800.2,5.566]
[1746015927662,5.55432126,1800.4,1800.1,0.7913]
[1746015927951,5.55432126,1800.4,1800.3,5.566]
[1746015928551,6.3696137,1800.4,1800.3,5.566]
[1746015929051,6.87917967,1800.4,1800.3,5.566]
[1746015930244,0.7875,1800.3,1799.6,0.7942]
[1746015930409,5.55609095,1799.9,1799.7,5.566]
[1746015930826,5.86072591,1800.2,1799.7,5.566]
[1746015931033,5.55616947,1799.9,1799.8,5.566]
[1746015932046,5.55532375,1800.1,1799.8,5.566]
[1746015932447,5.62458951,1800.2,1799.8,11.12206383]
[1746015932624,5.55530228,1800.1,1799.8,12.23428393]
[1746015932961,5.55530228,1800.1,1799.8,12.23433085]
[1746015932962,0.51044048,1800.1,1799.8,12.23433085]
[1746015933449,5.55497746,1800.2,1799.8,12.23433085]
[1746015933813,5.55497746,1800.2,1799.8,12.23419062]
[1746015934425,5.55497746,1800.2,1799.8,12.23416668]
[1746015935155,5.55465767,1800.3,1799.9,7.55114605]
[1746015935833,0.81775075,1800.2,1800.0,5.55535364]
[1746015936223,0.81775075,1800.2,1800.1,5.55524693]
[1746015936424,0.81775075,1800.2,1800.0,5.55535364]
[1746015936623,0.30665596,1800.2,1800.0,5.55535364]
[1746015936824,0.30665596,1800.2,1800.1,5.55524693]
[1746015937258,6.06527286,1800.5,1800.2,5.55489915]
[1746015937560,0.51123037,1800.4,1800.3,6.35650902]
[1746015937935,6.32613318,1800.8,1800.3,6.35650902]
[1746015937936,0.51123037,1800.6,1800.4,5.55422948]
[1746015938467,0.51123037,1800.7,1800.4,11.10834907]
[1746015938771,0.51123037,1800.7,1800.4,6.7451545]
[1746015938934,5.55319105,1800.8,1800.4,6.7451545]
[1746015939552,5.55269742,1801.0,1800.6,5.55358342]
[1746015939861,5.55283138,1800.9,1800.7,5.386]
[1746015940039,5.85943362,1800.9,1800.7,5.386]
[1746015940237,5.85943362,1800.9,1800.0,6.1936]
[1746015940238,5.55478459,1800.3,1800.0,6.1936]
[1746015940554,5.55482837,1800.3,1800.0,6.1936]
[1746015941170,5.55466828,1800.3,1800.0,6.1936]
[1746015941376,5.55401277,1800.5,1800.0,6.1936]
[1746015941542,5.55472309,1800.3,1800.0,6.1936]
[1746015942152,5.55472309,1800.3,1800.0,8.093647]
[1746015942395,5.55453396,1800.4,1800.1,5.386]
[1746015942778,5.55474679,1800.3,1800.1,5.386]
[1746015942942,5.55421823,1800.5,1800.1,10.94115163]
[1746015943142,6.0651967,1800.4,1800.1,5.386]
[1746015943557,0.5108747,1800.3,1800.1,5.386]
[1746015943752,0.5108747,1800.3,1800.1,12.67165861]
[1746015944277,0.5108747,1800.3,1800.1,7.11642206]
[1746015944779,0.5108747,1800.3,1800.1,5.386]
[1746015944780,5.5548248,1800.3,1800.1,5.386]
[1746015945084,5.55453143,1800.4,1800.1,5.386]
[1746015946385,5.55416422,1800.5,1800.1,10.94104409]
[1746015946882,0.30652817,1800.4,1800.1,10.94104409]
[1746015947087,0.30652817,1800.4,1800.1,12.1159085]
[1746015947389,5.8608619,1800.4,1800.1,12.1159085]
[1746015947983,0.30652817,1800.4,1800.1,12.1159085]
[1746015948189,5.55416422,1800.5,1800.1,12.1159085]
[1746015948390,5.55443004,1800.4,1800.1,12.1159085]
[1746015948699,11.10847887,1800.5,1800.1,12.1159085]
[1746015948908,5.55432145,1800.4,1800.1,12.1159085]
[1746015949266,5.55423129,1800.5,1800.1,12.1159085]
[1746015949470,11.10790409,1800.6,1800.2,5.55476319]
[1746015949669,6.37146619,1800.5,1800.2,5.5549269]
[1746015950008,6.88231952,1800.5,1800.2,5.5549269]
[1746015950204,5.55493834,1800.2,1800.1,5.386]
[1746015950404,5.55524693,1800.1,1800.0,23.722]
[1746015950614,5.55524693,1800.1,1799.4,5.55730831]
[1746015950615,5.55727353,1799.5,1799.4,0.7896]
[1746015950821,5.55727353,1799.5,1799.4,5.385]
[1746015950822,5.55719969,1799.5,1799.4,5.385]
[1746015950968,5.55691983,1799.6,1799.4,5.385]
[1746015951176,0.806,1799.9,1799.4,5.385]
[1746015951373,5.55709919,1799.5,1799.4,5.385]
[1746015951690,5.5569774,1799.6,1799.4,5.385]
[1746015952969,5.5569774,1799.6,1799.2,6.3241921]
[1746015953204,5.55716418,1799.5,1799.3,5.386]
[1746015953610,5.55740802,1799.4,1799.3,5.386]
[1746015955309,0.8279,1799.8,1799.3,5.386]
[1746015955472,5.55719663,1799.5,1799.3,5.386]
[1746015955672,5.55699588,1799.6,1799.3,5.9246]
[1746015956169,5.55699588,1799.6,1799.3,5.386]
[1746015956806,11.11406057,1799.6,1799.3,5.386]
[1746015957110,5.55721532,1799.5,1799.3,5.386]
[1746015957310,5.55740802,1799.4,1799.3,5.386]
[1746015957610,5.55721532,1799.5,1799.3,5.386]
[1746015958114,5.55740802,1799.4,1799.3,5.386]
[1746015960418,6.34610802,1799.4,1799.3,5.386]
[1746015960579,5.55864369,1799.0,1798.9,23.723]
[1746015960779,5.55846185,1799.1,1798.9,23.723]
[1746015960973,5.55864369,1799.0,1798.9,23.723]
[1746015961410,7.50185424,1799.0,1798.9,23.723]
[1746015961915,0.8315,1799.0,1798.9,5.387]
[1746015962115,5.55822338,1799.2,1798.9,5.387]
[1746015962475,5.55833843,1799.1,1798.9,5.387]
[1746015963112,5.55864369,1799.0,1798.9,5.387]
[1746015963311,6.6703419,1799.0,1798.9,5.387]
[1746015963614,5.55833843,1799.1,1798.9,5.387]
[1746015964383,5.55823411,1799.2,1798.9,5.387]
[1746015964721,11.11652072,1799.2,1798.9,5.387]
[1746015964929,5.55823411,1799.2,1798.9,5.387]
[1746015965223,0.88148682,1799.3,1798.9,5.387]
[1746015965523,5.5580934,1799.2,1798.9,5.387]
[1746015965727,5.55833851,1799.1,1798.9,5.387]
[1746015965930,5.5574362,1799.4,1798.9,6.1848]
[1746015966090,6.30795462,1799.5,1799.1,5.55808253]
[1746015966289,6.94569778,1799.5,1799.1,5.55808253]
[1746015966491,5.55735462,1799.5,1799.1,5.55808253]
[1746015966998,11.11469677,1799.5,1799.1,5.55808253]
[1746015967202,5.5574345,1799.4,1799.0,5.55842558]
[1746015967403,5.5574345,1799.4,1799.0,11.11685202]
[1746015967902,5.5574345,1799.4,1799.0,11.11684453]
[1746015968102,5.5574345,1799.4,1799.1,5.55827662]
[1746015968326,5.5574345,1799.4,1799.0,7.28859274]
[1746015968494,5.55793879,1799.3,1798.9,11.74354724]
[1746015968694,5.55805181,1799.2,1798.9,11.74354724]
[1746015968896,5.55805181,1799.2,1798.9,6.1848]
[1746015969102,5.55793879,1799.3,1798.9,11.74360084]
[1746015969307,5.55815108,1799.2,1798.9,11.74366072]
[1746015969492,5.55815108,1799.2,1798.9,6.1848]
[1746015969689,5.55839831,1799.1,1798.9,5.387]
[1746015970692,5.55815108,1799.2,1798.9,5.387]
[1746015970894,11.11516749,1799.4,1798.9,10.94572629]
[1746015971146,5.55776215,1799.3,1799.0,5.55855472]
[1746015971342,5.55724711,1799.5,1799.1,6.36893268]
[1746015971699,5.55884969,1799.0,1798.1,5.56142594]
[1746015971904,0.8144,1798.6,1798.1,1.93070875]
[1746015972145,5.56105861,1798.3,1797.9,11.64026402]
[1746015972318,5.56129717,1798.2,1797.9,6.0784]
[1746015972722,5.56100996,1798.3,1797.9,6.0784]
[1746015973248,5.56094249,1798.3,1797.9,5.26]
[1746015973545,5.56130869,1798.2,1797.9,5.26]
[1746015974557,5.56094249,1798.3,1797.9,5.26]
[1746015975146,5.56086889,1798.3,1797.9,5.26]
[1746015975643,6.32503717,1798.4,1797.9,10.82200175]
[1746015975844,11.95533473,1798.4,1797.9,10.82200175]
[1746015976150,7.86177893,1798.4,1797.9,10.82200175]
[1746015976333,5.56081802,1798.3,1797.9,10.82183462]
[1746015976505,7.86173787,1798.4,1797.9,10.82183462]
[1746015976701,2.30104176,1798.4,1798.0,5.56157932]
[1746015976930,3.41208286,1798.5,1798.0,5.56157932]
[1746015976931,8.5603418,1798.5,1798.1,5.56140165]
[1746015977144,8.62985668,1798.5,1798.1,5.56140165]
[1746015977444,8.5603418,1798.5,1798.1,5.56140165]
[1746015977938,3.0,1798.5,1798.0,0.7704]
[1746015978142,5.56069548,1798.4,1798.0,6.33199341]
[1746015978752,5.63020729,1798.4,1798.0,6.33198191]
[1746015979150,5.56069548,1798.4,1798.0,6.33198191]
[1746015979651,5.56052982,1798.4,1798.0,6.33193862]
[1746015979964,5.56052982,1798.4,1798.0,6.33191075]
[1746015980715,1.51929266,1798.4,1798.1,5.262]
[1746015981015,6.34461667,1798.2,1798.1,5.262]
[1746015981215,0.7835,1798.2,1798.1,5.262]
[1746015981521,7.0104298,1798.4,1798.1,5.262]
[1746015981719,5.56064853,1798.4,1798.1,10.82341613]
[1746015982232,5.56064853,1798.4,1798.1,5.262]
[1746015982433,12.64953873,1798.4,1798.1,5.262]
[1746015982642,5.56081062,1798.3,1798.1,5.262]
[1746015982947,1.52814418,1798.4,1798.1,5.262]
[1746015983147,5.56111667,1798.2,1798.1,5.262]
[1746015983340,5.56097294,1798.3,1798.1,5.262]
[1746015983541,7.08878494,1798.4,1798.1,5.262]
[1746015983842,5.560066,1798.6,1798.1,6.0897]
[1746015984023,5.56004588,1798.6,1798.1,11.65103783]
[1746015984225,5.5603141,1798.5,1798.1,6.38895379]
[1746015984419,5.56082666,1798.3,1798.2,5.262]
[1746015984615,5.56112317,1798.2,1797.8,5.56217188]
[1746015984843,5.56112317,1798.2,1797.9,5.262]
[1746015985659,5.56155494,1798.1,1797.9,5.262]
[1746015986069,5.56133528,1798.2,1797.9,5.262]
[1746015986287,5.56157155,1798.1,1797.9,5.262]
[1746015986447,5.56133528,1798.2,1797.9,5.262]
[1746015986781,0.42487776,1798.2,1797.9,10.82398777]
[1746015986982,5.56098895,1798.3,1798.0,5.5616701]
[1746015987356,3.0,1798.4,1797.9,5.262]
[1746015987557,5.56133794,1798.2,1797.9,5.262]
[1746015988591,5.86099047,1798.3,1797.9,5.262]
[1746015988743,5.56156932,1798.1,1798.0,5.262]
[1746015989387,5.56125227,1798.2,1798.0,5.262]
[1746015989596,5.56142594,1798.1,1798.0,5.262]
[1746015989745,11.54201515,1798.2,1798.0,5.262]
[1746015989945,0.41941296,1798.2,1798.0,5.262]
[1746015990179,5.56142594,1798.1,1798.0,5.262]
[1746015990554,5.56320301,1797.6,1797.3,18.347]
[1746015990871,5.56328233,1797.5,1797.4,5.263]
[1746015991379,8.56328233,1797.5,1797.4,5.263]
[1746015991580,5.56359185,1797.4,1797.3,18.347]
[1746015991787,5.56359185,1797.4,1797.3,23.61]
[1746015992542,5.98842789,1797.4,1797.3,23.61]
[1746015992946,11.12638478,1797.6,1797.3,23.61]
[1746015993147,11.12562821,1797.7,1797.3,23.61]
[1746015993344,5.56298074,1797.6,1797.3,29.17380112]
[1746015993587,5.56298074,1797.6,1797.3,23.61]
[1746015993813,5.56359185,1797.4,1797.3,18.347]
[1746015993963,5.5639014,1797.3,1797.2,5.181]
[1746015995767,6.34728652,1797.5,1797.2,5.181]
[1746015995967,0.7838,1797.5,1797.2,5.181]
[1746015996290,5.56363645,1797.4,1797.2,5.181]
[1746015996905,5.5639014,1797.3,1797.2,5.181]
[1746015997398,6.1983801,1797.4,1797.2,5.181]
[1746015997399,6.1985314,1797.4,1797.2,5.181]
[1746015997567,5.56345566,1797.5,1797.2,5.181]
[1746015997767,15.65758802,1797.6,1797.2,10.74507415]
[1746015997976,10.09437083,1797.6,1797.2,10.74507415]
[1746015998176,10.09437083,1797.6,1797.2,5.181]
[1746015998177,5.56350369,1797.5,1797.2,5.181]
[1746015998384,1.01643081,1797.5,1797.2,5.181]
[1746015998566,0.48823371,1797.6,1797.3,0.7954]
[1746015998766,5.98175647,1797.6,1797.3,0.7954]
[1746015998994,5.56330015,1797.5,1797.3,0.7954]
[1746015999201,9.32541398,1797.7,1797.3,0.7954]
[1746015999398,5.56308224,1797.6,1797.3,0.7954]
[1746015999602,5.56271398,1797.7,1797.3,1.94944188]
[1746015999899,5.56271398,1797.7,1797.3,6.35911022]
[1746016000102,5.56271398,1797.7,1797.3,6.35909377]
[1746016000271,5.56222251,1797.9,1797.4,5.56359185]
[1746016000473,5.56238688,1797.8,1797.5,5.56323056]
[1746016000673,5.56238688,1797.8,1797.6,5.182]
[1746016001015,5.5624703,1797.8,1797.6,5.182]
[1746016001418,5.9800945,1797.8,1797.6,5.182]
[1746016001575,6.57810395,1797.8,1797.6,5.182]
[1746016001770,5.56183676,1798.0,1797.6,5.182]
[1746016001986,5.56183676,1798.0,1797.6,10.74487273]
[1746016002185,5.56204797,1797.9,1797.6,10.74487273]
[1746016002512,0.06952524,1798.1,1797.7,5.56263788]
[1746016002513,5.56157433,1798.1,1797.7,5.56263788]
[1746016002705,6.06895717,1798.0,1797.6,11.51013252]
[1746016002885,1.0143554,1798.0,1797.6,5.9474]
[1746016003205,0.50717764,1798.0,1797.7,5.56256635]
[1746016003411,5.56128343,1798.2,1797.8,5.56221784]
[1746016003709,0.50720773,1798.1,1797.9,5.56193946]
[1746016003899,1.01439386,1798.1,1798.0,5.182]
[1746016004410,0.50720773,1798.1,1798.0,6.0066]
[1746016004577,0.50720773,1798.1,1798.0,11.56833526]
[1746016004977,5.56064901,1798.4,1798.1,5.56140396]
[1746016005179,6.31262011,1798.6,1798.2,5.56100304]
[1746016005486,11.12014646,1798.6,1798.2,5.56100304]
[1746016005718,5.62919479,1798.7,1798.3,5.56069204]
[1746016006008,5.55969208,1798.7,1798.4,5.182]
[1746016006192,5.55969208,1798.7,1798.4,5.9764]
[1746016006411,6.31195985,1798.8,1798.4,5.9764]
[1746016006574,5.98691655,1798.8,1798.4,11.53683825]
[1746016006773,0.4275567,1798.8,1798.4,11.53671612]
[1746016007077,5.55911495,1798.9,1798.4,12.69038773]
[1746016007278,5.55881772,1799.0,1798.5,5.56000951]
[1746016007515,5.55977214,1798.7,1798.6,5.181]
[1746016008715,0.8155,1798.8,1798.6,5.181]
[1746016008925,5.5595708,1798.7,1798.6,5.181]
[1746016009614,6.26657815,1798.7,1798.6,5.181]
[1746016009987,5.56032214,1798.5,1798.2,0.7979]
[1746016010216,5.56032214,1798.5,1798.3,5.181]
[1746016010422,5.56009727,1798.6,1798.3,5.181]
[1746016010618,5.5602319,1798.5,1798.3,5.181]
[1746016010938,5.5602319,1798.5,1798.1,18.363]
[1746016010939,5.56086011,1798.3,1798.1,18.363]
[1746016011086,5.56086011,1798.3,1798.2,5.181]
[1746016011288,5.56049085,1798.5,1798.2,5.181]
[1746016011736,5.56001144,1798.6,1798.2,5.181]
[1746016011939,5.56019336,1798.5,1798.2,10.74190134]
[1746016012095,5.56019336,1798.5,1798.2,13.85651715]
[1746016012587,5.56019336,1798.5,1798.2,5.181]
[1746016012802,5.55998326,1798.6,1798.2,5.181]
[1746016013002,5.56033197,1798.5,1798.2,5.181]
[1746016013220,5.56034163,1798.5,1798.2,5.181]
[1746016013526,5.55998326,1798.6,1798.2,5.181]
[1746016013727,5.56028071,1798.5,1798.2,5.181]
[1746016013892,5.97603806,1798.9,1798.4,5.56034308]
[1746016014092,5.55940916,1798.8,1798.4,5.56034308]
[1746016014316,5.55926976,1798.8,1798.5,5.56004882]
[1746016014492,5.97603806,1798.9,1798.6,5.18]
[1746016014929,11.11832258,1798.9,1798.6,5.18]
[1746016015092,5.55912574,1798.9,1798.6,5.18]
[1746016015292,11.11836114,1798.9,1798.6,5.18]
[1746016015720,11.11836621,1798.9,1798.6,5.18]
[1746016015902,5.55912574,1798.9,1798.6,5.18]
[1746016016230,5.55937327,1798.8,1798.6,5.18]
[1746016016435,11.11835291,1798.9,1798.6,5.18]
[1746016016749,5.55912574,1798.9,1798.6,5.18]
[1746016017044,11.11771104,1799.0,1798.7,0.7885]
[1746016017215,5.55878335,1799.0,1798.7,0.7885]
[1746016017705,5.55874051,1799.0,1798.7,0.7885]
[1746016018318,11.11766895,1799.0,1798.7,0.7885]
[1746016018521,5.55874051,1799.0,1798.7,0.7885]
[1746016020064,11.11765832,1799.0,1798.7,0.7885]
[1746016020234,8.97318922,1799.1,1798.7,6.34790374]
[1746016020434,5.55875481,1799.0,1798.7,0.7885]